bitfinex-derivatives/quotes_ETHF0:USTF0_20250103
["timestamp","ask_amount","ask_price","bid_price","bid_amount"]
[1735897620896,2.29913418,3446.1,3445.6,0.29046]
[1735897620897,0.29046,3445.7,3445.6,0.29046]
[1735897622394,0.29045,3445.8,3445.7,0.29045]
[1735897623200,2.29913418,3446.1,3445.5,0.00205839]
[1735897623401,2.29913418,3445.8,3445.5,0.00205839]
[1735897623604,0.29047,3445.6,3445.5,0.29252839]
[1735897623803,0.29047,3445.6,3445.5,0.00205839]
[1735897626209,41.09047,3445.6,3445.5,0.00205839]
[1735897627116,0.29047,3445.6,3445.5,0.0928675]
[1735897627415,0.29047,3445.6,3445.5,0.00205839]
[1735897628107,0.29047,3445.6,3445.5,0.09286841]
[1735897628709,0.29047,3445.6,3445.5,0.09286936]
[1735897629111,0.29047,3445.6,3445.5,0.38333936]
[1735897631116,0.29047,3445.6,3445.5,0.09286936]
[1735897631818,0.29047,3445.6,3445.5,0.09286986]
[1735897632418,0.29047,3445.6,3445.5,0.38333992]
[1735897633719,0.29047,3445.6,3445.5,0.09286992]
[1735897634115,0.29047,3445.6,3445.5,0.0928692]
[1735897634621,0.29047,3445.6,3445.5,0.3833392]
[1735897634817,0.29047,3445.6,3445.5,0.29252839]
[1735897635023,0.29047,3445.6,3445.5,0.09286827]
[1735897635922,0.29047,3445.6,3445.5,0.38333827]
[1735897636221,0.29045,3445.9,3445.8,0.29044]
[1735897636411,0.29045,3445.9,3445.8,3.58904988]
[1735897636617,41.09045,3445.9,3445.8,3.58904988]
[1735897637809,40.8,3445.9,3445.8,3.58904988]
[1735897638215,0.29044,3445.9,3445.8,3.58904988]
[1735897641023,0.29044,3445.9,3445.8,3.5890395]
[1735897641616,0.29044,3445.9,3445.8,3.58903943]
[1735897641821,0.29043,3446.0,3445.9,0.29043]
[1735897642014,0.29043,3446.0,3445.9,0.38122943]
[1735897643925,0.29043,3446.0,3445.9,0.29043]
[1735897644125,0.29043,3446.0,3445.9,0.38122953]
[1735897647033,0.29043,3446.0,3445.9,5.06376971]
[1735897648232,0.29043,3446.0,3445.9,4.77333971]
[1735897649038,0.29043,3446.0,3445.9,5.06377971]
[1735897649632,0.29043,3446.0,3445.9,0.38123951]
[1735897650032,0.29043,3446.0,3445.9,0.38124126]
[1735897650534,0.29043,3446.0,3445.9,0.29044]
[1735897650740,0.29043,3446.0,3445.9,0.38124093]
[1735897652043,0.29043,3446.0,3445.9,5.06825266]
[1735897652242,0.29043,3446.1,3446.0,0.29043]
[1735897652538,0.29043,3446.1,3446.0,0.38122797]
[1735897653141,41.09042,3446.2,3446.1,0.29042]
[1735897653344,40.8,3446.2,3446.1,0.38121797]
[1735897653640,2.57193679,3446.3,3446.2,0.29041]
[1735897653841,2.57193679,3446.3,3446.2,0.38120797]
[1735897654142,43.37193679,3446.3,3446.2,0.38120797]
[1735897654943,41.09041,3446.3,3446.2,0.38120797]
[1735897655141,41.09041,3446.3,3446.2,5.0682197]
[1735897656646,41.09041,3446.3,3446.2,4.7778097]
[1735897657150,41.09041,3446.3,3446.2,4.68701173]
[1735897657549,0.29043,3446.0,3445.9,3.2078]
[1735897657848,0.29043,3446.0,3445.9,3.29860016]
[1735897658959,0.29043,3446.0,3445.9,7.98409069]
[1735897659154,0.29043,3446.0,3445.9,7.98409613]
[1735897659851,0.29043,3446.0,3445.9,7.89329053]
[1735897660350,0.29043,3446.0,3445.9,3.2078]
[1735897660743,0.29043,3446.0,3445.9,3.29860696]
[1735897660939,0.29043,3446.0,3445.9,3.29860649]
[1735897661144,0.29043,3446.0,3445.9,0.09080649]
[1735897661341,0.7261,3446.0,3445.5,9.0372488]
[1735897661652,0.29046,3445.7,3445.6,0.09080914]
[1735897662253,0.29046,3445.7,3445.6,0.09080898]
[1735897662754,0.29046,3445.7,3445.6,4.68666741]
[1735897663851,0.29046,3445.7,3445.6,4.77748171]
[1735897664752,0.29046,3445.7,3445.6,0.0908143]
[1735897665452,0.29046,3445.7,3445.6,0.09081312]
[1735897666356,0.29046,3445.7,3445.5,0.00205839]
[1735897666556,0.29046,3445.7,3445.6,0.09081325]
[1735897667858,0.29046,3445.7,3445.5,0.00205839]
[1735897667859,0.29047,3445.6,3445.5,0.00205839]
[1735897675061,41.09047,3445.6,3445.5,0.00205839]
[1735897676963,44.49302755,3445.6,3445.5,0.00205839]
[1735897678057,44.92899979,3445.6,3445.5,0.00205839]
[1735897679258,44.49302755,3445.6,3445.5,0.00205839]
[1735897680358,43.3714857,3445.6,3445.5,0.00205839]
[1735897682065,41.09047,3445.6,3445.5,0.00205839]
[1735897682464,41.09047,3445.6,3445.0,0.29051]
[1735897682465,40.8,3445.6,3445.0,0.29051]
[1735897682764,0.29051,3445.1,3445.0,0.29051]
[1735897683069,0.29051,3445.1,3445.0,0.38132995]
[1735897683471,0.29051,3445.1,3445.0,0.29051]
[1735897683867,3.02535418,3445.4,3444.9,3.2078]
[1735897684066,0.29052,3445.0,3444.9,3.49832]
[1735897684369,0.29052,3445.0,3444.9,3.58914428]
[1735897684966,2.29913418,3445.4,3444.9,3.29862428]
[1735897685160,0.29051,3445.1,3445.0,0.38133428]
[1735897685367,0.2905,3445.3,3445.2,0.29049]
[1735897685566,0.2905,3445.3,3445.2,0.38130554]
[1735897686171,0.2905,3445.3,3445.2,0.38130383]
[1735897686667,40.8,3445.6,3445.3,0.29048]
[1735897686668,0.29049,3445.4,3445.3,0.29048]
[1735897686869,0.29049,3445.4,3445.3,3.58909383]
[1735897687067,0.29048,3445.5,3445.4,0.29047]
[1735897687370,0.29048,3445.5,3445.4,0.38128383]
[1735897687568,40.8,3445.6,3445.4,0.09081383]
[1735897687769,41.09047,3445.6,3445.5,0.38128383]
[1735897687969,41.09047,3445.6,3445.5,0.38128052]
[1735897688167,40.8,3445.6,3445.5,0.38128052]
[1735897688364,41.09047,3445.6,3445.5,0.38128052]
[1735897688973,41.09047,3445.6,3445.5,0.09081052]
[1735897689680,41.09047,3445.6,3445.5,0.38128052]
[1735897689969,41.09047,3445.6,3445.5,0.38127981]
[1735897693970,41.09047,3445.6,3445.5,0.09080981]
[1735897694776,41.09047,3445.6,3445.4,3.2078]
[1735897694777,40.8,3445.6,3445.4,3.2078]
[1735897695071,2.58960418,3445.5,3445.4,3.2078]
[1735897696971,0.29052,3444.9,3444.8,7.08123971]
[1735897697175,0.29052,3444.9,3444.8,7.17206623]
[1735897697771,0.29052,3444.9,3444.8,7.17206553]
[1735897697972,0.29052,3444.9,3444.8,11.86285251]
[1735897699782,0.29052,3444.9,3444.8,11.57232251]
[1735897700367,0.29052,3444.9,3444.8,11.86285251]
[1735897700780,0.29052,3444.9,3444.8,11.86285226]
[1735897702676,0.29052,3444.9,3444.8,5.07214255]
[1735897703676,0.29052,3444.9,3444.8,4.98131698]
[1735897703885,0.29052,3444.9,3444.8,5.07214242]
[1735897704082,0.29052,3444.9,3444.8,4.78161242]
[1735897704279,1.30305435,3444.9,3444.8,4.98131698]
[1735897704474,1.30305435,3444.9,3444.8,5.07214253]
[1735897704782,1.30305435,3444.9,3444.8,4.78161253]
[1735897704983,1.30305435,3444.9,3444.8,5.07214253]
[1735897705279,1.30305435,3444.9,3444.8,4.78161253]
[1735897706173,1.30305435,3444.9,3444.8,4.78161215]
[1735897706881,1.30305435,3444.9,3444.8,5.07214215]
[1735897707670,1.30305435,3444.9,3444.8,4.78161215]
[1735897708279,1.30305435,3444.9,3444.8,14.79367917]
[1735897708879,1.30305435,3444.9,3444.8,15.08420917]
[1735897710884,1.30305435,3444.9,3444.8,14.79367917]
[1735897711188,1.30305435,3444.9,3444.8,15.08418917]
[1735897712584,1.30305435,3444.9,3444.8,8.27992215]
[1735897712988,1.30305435,3444.9,3444.8,8.2799193]
[1735897713389,1.30305435,3444.9,3444.8,8.18909698]
[1735897713582,1.30305435,3444.9,3444.8,8.2799193]
[1735897715389,1.30305435,3444.9,3444.8,7.9894093]
[1735897715988,1.30305435,3444.9,3444.8,8.27992408]
[1735897716187,1.30305435,3444.9,3444.8,7.98941408]
[1735897716787,1.30305435,3444.9,3444.8,14.79446505]
[1735897716984,1.30305435,3444.9,3444.8,15.08497505]
[1735897718190,1.30305435,3444.9,3444.8,14.79446505]
[1735897718690,1.30305435,3444.9,3444.8,15.08497505]
[1735897718895,1.30305435,3444.9,3444.8,14.79446505]
[1735897719192,1.30305435,3444.9,3444.8,14.79446356]
[1735897719586,1.30305435,3444.9,3444.8,15.08497356]
[1735897719788,1.30305435,3444.9,3444.8,11.87717356]
[1735897719987,1.30305435,3444.9,3444.8,15.08497356]
[1735897720182,1.30305435,3444.9,3444.8,14.79446356]
[1735897720891,1.30305435,3444.9,3444.8,15.08497356]
[1735897721191,1.30305435,3444.9,3444.8,15.08497489]
[1735897722689,1.30305435,3444.9,3444.8,14.99414795]
[1735897722894,1.30305435,3444.9,3444.8,15.08497435]
[1735897724101,0.29052,3444.9,3444.8,15.08497435]
[1735897724295,2.2810157,3445.3,3444.8,14.79446435]
[1735897724596,2.5714857,3445.3,3445.2,3.49827]
[1735897724785,2.5714857,3445.3,3445.2,3.5890964]
[1735897725192,2.5714857,3445.3,3445.2,3.58908307]
[1735897725694,0.29047,3445.3,3445.2,15.08492102]
[1735897726792,40.8,3445.6,3445.2,15.80698537]
[1735897727101,2.2810157,3445.7,3445.6,0.29044]
[1735897727291,2.2810157,3445.7,3445.6,4.60158742]
[1735897728186,2.2810157,3445.7,3445.6,4.60156913]
[1735897728997,3.69297755,3445.8,3445.7,0.29043]
[1735897728998,0.29042,3445.8,3445.7,0.29043]
[1735897729191,0.29042,3445.8,3445.7,0.38122478]
[1735897730395,1.30295435,3445.8,3445.7,5.07201176]
[1735897731200,1.30295435,3445.8,3445.7,5.07201426]
[1735897731703,1.30295435,3445.8,3445.7,11.77031691]
[1735897731995,1.30295435,3445.8,3445.7,11.86111493]
[1735897734103,41.09042,3445.9,3445.8,0.29042]
[1735897734296,41.09042,3445.9,3445.8,0.38121446]
[1735897735097,40.8,3445.9,3445.8,1.39374881]
[1735897735297,0.29041,3446.0,3445.8,1.10332881]
[1735897735506,0.29041,3446.0,3445.9,0.38120446]
[1735897735896,41.09041,3446.0,3445.9,0.38120446]
[1735897737700,41.09041,3446.0,3445.9,3.58900446]
[1735897738596,41.09041,3446.0,3445.9,3.49821]
[1735897738796,42.10294435,3446.0,3445.9,3.58900315]
[1735897739401,42.10294435,3446.0,3445.9,3.49821]
[1735897740504,42.10294435,3446.0,3445.9,3.58900441]
[1735897741004,42.10294435,3446.0,3445.9,3.58900568]
[1735897742406,42.10294435,3446.0,3445.9,3.58900436]
[1735897743010,42.10294435,3446.0,3445.9,3.58900446]
[1735897744604,42.10294435,3446.0,3445.9,3.49821]
[1735897744806,42.10294435,3446.0,3445.9,3.58900672]
[1735897745509,42.10294435,3446.0,3445.9,3.58900443]
[1735897751808,42.10294435,3446.0,3445.9,3.29859443]
[1735897752021,42.10294435,3446.0,3445.9,3.2078]
[1735897752405,42.10294435,3446.0,3445.9,3.29860237]
[1735897752605,42.10294435,3446.0,3445.9,3.2078]
[1735897752813,42.10294435,3446.0,3445.9,3.29860232]
[1735897753909,42.10294435,3446.0,3445.9,3.2078]
[1735897754105,42.10294435,3446.0,3445.9,3.2986022]
[1735897754610,42.10294435,3446.0,3445.9,3.29860192]
[1735897756210,42.10294435,3446.0,3445.9,0.09080192]
[1735897757711,0.29041,3445.9,3445.8,0.29042]
[1735897757912,0.29041,3445.9,3445.8,0.38122031]
[1735897761311,0.29041,3445.9,3445.8,0.38121538]
[1735897763208,0.2904,3446.0,3445.9,0.29041]
[1735897763410,0.2904,3446.1,3446.0,0.2904]
[1735897763609,0.29038,3446.4,3446.1,0.2904]
[1735897763813,0.29038,3446.4,3446.3,0.29036]
[1735897764012,0.29038,3446.4,3446.3,0.38115538]
[1735897764314,41.09038,3446.4,3446.3,0.38115538]
[1735897765006,40.8,3446.4,3446.3,1.39368973]
[1735897765207,0.29037,3446.6,3446.5,0.29035]
[1735897765416,0.29037,3446.6,3446.5,0.38114538]
[1735897766313,41.09037,3446.6,3446.5,0.38114538]
[1735897766913,41.09037,3446.6,3446.5,0.38112665]
[1735897768120,40.8,3446.6,3446.5,0.38112665]
[1735897768614,41.09035,3446.6,3446.5,0.38112665]
[1735897769008,40.8,3446.6,3446.5,4.90599616]
[1735897769819,40.8,3446.6,3446.5,4.81521951]
[1735897770019,40.8,3446.6,3446.5,4.90599547]
[1735897770417,40.8,3446.6,3446.5,5.06900249]
[1735897770818,41.09035,3446.6,3446.5,5.06900249]
[1735897771013,40.8,3446.6,3446.5,5.06900249]
[1735897772425,41.09035,3446.6,3446.5,4.77865473]
[1735897772613,41.09035,3446.6,3446.5,5.06901473]
[1735897773024,41.09035,3446.6,3446.5,4.91236359]
[1735897774322,41.09035,3446.6,3446.5,7.17024169]
[1735897775726,41.09035,3446.6,3446.5,6.87988169]
[1735897775921,41.09035,3446.6,3446.5,7.1702423]
[1735897776121,41.09035,3446.6,3446.5,11.86027336]
[1735897777520,41.09035,3446.6,3446.5,4.91095975]
[1735897778426,40.8,3446.6,3446.5,4.91095975]
[1735897778725,41.09035,3446.6,3446.5,7.1702423]
[1735897778930,41.09035,3446.6,3446.5,7.07945993]
[1735897779224,41.09035,3446.6,3446.5,7.17023793]
[1735897779225,40.8,3446.6,3446.5,7.17023793]
[1735897779425,41.09035,3446.6,3446.5,7.17023793]
[1735897779628,41.09035,3446.6,3446.5,7.17023833]
[1735897780025,41.09035,3446.6,3446.5,11.85898267]
[1735897781327,41.09035,3446.6,3446.5,4.77952274]
[1735897781525,41.09035,3446.6,3446.5,4.77952905]
[1735897782318,41.09035,3446.6,3446.5,5.06988905]
[1735897782524,41.09035,3446.6,3446.5,4.77952905]
[1735897782723,41.09035,3446.6,3446.5,4.61995198]
[1735897785329,41.09035,3446.6,3446.5,4.6199498]
[1735897786727,41.09035,3446.6,3446.5,0.09078253]
[1735897786927,40.8,3446.6,3446.4,4.52916727]
[1735897787128,1.30289435,3446.5,3446.4,4.52916727]
[1735897787329,1.30289435,3446.5,3446.4,4.61995632]
[1735897787528,1.30289435,3446.5,3446.4,4.52916727]
[1735897787734,42.10289435,3446.5,3446.4,4.52916727]
[1735897787934,0.29038,3446.3,3446.2,7.73696727]
[1735897788136,1.30291435,3446.3,3446.2,7.82775887]
[1735897788338,1.30291435,3446.3,3446.2,7.8277589]
[1735897789131,1.30291435,3446.3,3446.2,7.82775847]
[1735897789929,1.30291435,3446.3,3446.2,3.2985912]
[1735897790736,1.30291435,3446.3,3446.2,3.2078]
[1735897790924,1.30291435,3446.3,3446.2,3.29859057]
[1735897791529,1.30291435,3446.3,3446.2,3.29859297]
[1735897792336,0.29039,3446.2,3446.1,4.52916727]
[1735897792732,0.29039,3446.2,3446.1,4.61996744]
[1735897792935,0.29039,3446.2,3446.1,4.52916727]
[1735897793638,1.01253435,3446.3,3445.9,4.52916727]
[1735897793835,0.2904,3446.1,3445.9,4.52916727]
[1735897794032,0.2904,3446.0,3445.9,4.52916727]
[1735897795039,0.29042,3445.8,3445.7,3.2078]
[1735897795239,1.30295435,3445.8,3445.7,3.29860438]
[1735897797937,1.30295435,3445.8,3445.7,3.2078]
[1735897798340,1.30295435,3445.8,3445.7,3.29860447]
[1735897798646,0.29042,3445.8,3445.7,3.58903487]
[1735897799138,0.29042,3445.8,3445.7,7.82777214]
[1735897799839,0.29042,3445.8,3445.7,8.11820214]
[1735897800036,0.29042,3445.8,3445.7,8.02739727]
[1735897800233,0.29042,3445.8,3445.7,8.11819418]
[1735897800642,0.29042,3445.8,3445.7,8.11819487]
[1735897800843,0.29042,3445.8,3445.7,7.82776487]
[1735897801143,0.29042,3445.8,3445.7,8.11819487]
[1735897801346,1.73851435,3446.2,3445.7,8.84029922]
[1735897801544,0.29042,3445.9,3445.8,0.3812076]
[1735897802437,0.29042,3445.9,3445.8,0.0907976]
[1735897802644,0.29042,3445.9,3445.8,0.3812176]
[1735897802842,0.29042,3445.9,3445.8,0.38121751]
[1735897803043,0.29042,3445.9,3445.8,4.62015562]
[1735897803547,1.30295435,3445.9,3445.8,4.62015562]
[1735897803745,1.30295435,3445.9,3445.8,4.52935811]
[1735897804547,42.10295435,3445.9,3445.8,4.52935811]
[1735897804742,41.09042,3445.9,3445.8,4.52935811]
[1735897805745,40.8,3445.9,3445.4,4.52935811]
[1735897805952,0.29045,3445.5,3445.4,4.81980811]
[1735897806147,0.29045,3445.5,3445.4,4.62016063]
[1735897806350,0.29045,3445.5,3445.4,4.91062063]
[1735897807359,0.29045,3445.5,3445.4,11.85963253]
[1735897808243,0.29045,3445.5,3445.4,11.85963358]
[1735897808942,0.29045,3445.5,3445.4,11.5691742]
[1735897810148,0.29045,3445.5,3445.4,5.07053427]
[1735897811345,0.29045,3445.5,3445.4,4.78007427]
[1735897811547,0.29045,3445.5,3445.4,5.07053427]
[1735897811942,0.29045,3445.5,3445.4,5.99226443]
[1735897812253,0.29045,3445.5,3445.4,6.08306918]
[1735897812954,0.29045,3445.5,3445.4,5.07053483]
[1735897813955,0.72603,3446.0,3445.4,5.79260918]
[1735897814150,0.29041,3445.9,3445.8,3.49822]
[1735897814447,41.09041,3445.9,3445.8,3.58902475]
[1735897815055,41.09041,3445.9,3445.8,3.58901726]
[1735897815853,41.09041,3445.9,3445.8,0.38121726]
[1735897816044,41.09041,3445.9,3445.8,3.58901726]
[1735897817157,41.09041,3445.9,3445.8,8.11503992]
[1735897817355,41.09041,3445.9,3445.8,8.02424266]
[1735897817557,41.09041,3445.9,3445.8,8.11503964]
[1735897818257,41.09041,3445.9,3445.8,8.11503961]
[1735897820056,41.09041,3445.9,3445.8,9.12757396]
[1735897820254,0.29041,3445.9,3445.8,9.12757396]
[1735897820660,41.09041,3445.9,3445.8,9.12757396]
[1735897821161,41.09041,3445.9,3445.8,9.1275709]
[1735897821362,41.09041,3445.9,3445.8,16.07942694]
[1735897824361,41.09041,3445.9,3445.8,16.07942773]
[1735897824760,41.09041,3445.9,3445.8,16.07942728]
[1735897826961,41.09041,3445.9,3445.8,15.06689293]
[1735897828463,41.09041,3445.9,3445.8,8.277793]
[1735897832970,41.09041,3445.9,3445.8,26.70151807]
[1735897833471,41.09041,3445.9,3445.8,26.70151723]
[1735897833971,41.09041,3445.9,3445.8,26.70151724]
[1735897834370,41.09041,3445.9,3445.8,17.66632683]
[1735897837169,40.8,3445.9,3445.8,17.66632683]
[1735897837870,41.09041,3445.9,3445.8,17.66632683]
[1735897841571,40.8,3445.9,3445.8,17.66632683]
[1735897841769,41.09041,3445.9,3445.8,17.66632659]
[1735897842669,41.09041,3445.9,3445.8,17.66632709]
[1735897843274,41.09041,3445.9,3445.8,17.66632735]
[1735897843674,40.8,3445.9,3445.8,18.6788617]
[1735897843882,2.2810157,3446.3,3446.2,0.29039]
[1735897844066,2.2810157,3446.3,3446.2,4.60151827]
[1735897845270,40.8,3446.7,3446.6,0.29035]
[1735897845480,41.09035,3446.7,3446.6,3.58894392]
[1735897845680,40.8,3446.7,3446.6,3.58892307]
[1735897846378,41.09035,3446.7,3446.6,17.34046645]
[1735897846569,40.8,3446.7,3446.6,17.34046645]
[1735897848279,42.10288435,3446.7,3446.6,17.34046645]
[1735897848778,42.10288435,3446.7,3446.6,17.34047011]
[1735897849279,41.81253435,3446.7,3446.6,15.06851286]
[1735897851073,40.8,3446.7,3446.6,8.2777055]
[1735897852177,2.2810157,3447.3,3446.6,8.7132455]
[1735897852379,2.2810157,3447.4,3447.3,0.29029]
[1735897852683,2.2810157,3447.4,3447.3,0.38105321]
[1735897853680,40.8,3447.5,3447.3,0.09076321]
[1735897853881,40.8,3447.5,3447.4,0.38105321]
[1735897854787,0.29029,3447.4,3447.3,0.29029]
[1735897854986,1.30282435,3447.4,3447.3,0.29029]
[1735897856181,1.01253435,3447.4,3447.3,0.29029]
[1735897856376,1.30282435,3447.4,3447.3,0.29029]
[1735897858186,0.2903,3447.2,3447.1,3.49811]
[1735897858386,1.30283435,3447.2,3447.1,3.2078]
[1735897858691,1.30283435,3447.2,3447.1,3.49811]
[1735897860789,0.29032,3447.0,3446.9,4.52258738]
[1735897860992,1.30285435,3447.0,3446.9,4.52258738]
[1735897862195,0.29034,3446.8,3446.7,3.2078]
[1735897862390,1.30287435,3446.8,3446.7,3.2078]
[1735897863696,1.30287435,3446.8,3446.6,0.29035]
[1735897863697,0.29035,3446.7,3446.6,0.29035]
[1735897863995,0.29035,3446.7,3446.6,3.5889281]
[1735897864397,0.29035,3446.7,3446.6,3.2985781]
[1735897864791,0.29035,3446.7,3446.6,3.2078]
[1735897865298,2.59162923,3446.7,3446.6,3.2078]
[1735897865794,0.29035,3446.7,3446.6,3.2078]
[1735897865988,41.09035,3446.7,3446.6,3.2078]
[1735897868791,41.09035,3446.7,3446.6,3.29857924]
[1735897869187,0.29034,3446.8,3446.7,0.29033]
[1735897869400,0.29034,3446.8,3446.7,0.38110483]
[1735897870196,0.29034,3446.8,3446.7,0.09077483]
[1735897871796,0.29036,3446.5,3446.4,4.52258738]
[1735897872101,0.29036,3446.5,3446.4,4.61337086]
[1735897872497,0.29036,3446.5,3446.4,4.61337501]
[1735897872902,0.29036,3446.5,3446.4,0.09078763]
[1735897880906,0.29036,3446.5,3446.2,7.73038738]
[1735897880907,2.53723283,3446.7,3446.3,0.29038]
[1735897881105,0.29036,3446.5,3446.4,0.09078653]
[1735897881506,3.26312283,3446.7,3446.4,0.09078792]
[1735897881811,0.29038,3446.3,3446.2,8.02077738]
[1735897882000,0.29038,3446.3,3446.2,8.11156538]
[1735897883600,0.29038,3446.3,3446.2,8.11156657]
[1735897884006,0.29038,3446.3,3446.2,3.49819]
[1735897884212,1.30213825,3446.3,3446.2,3.58897816]
[1735897884411,0.29038,3446.3,3446.2,3.58897816]
[1735897886511,0.29038,3446.3,3446.2,8.11156554]
[1735897886708,0.29038,3446.3,3446.2,4.90376554]
[1735897886911,0.29038,3446.3,3446.2,8.11156554]
[1735897888310,1.30213825,3446.3,3446.2,8.11156554]
[1735897890216,1.30213825,3446.3,3446.2,8.11156201]
[1735897892120,1.30213825,3446.3,3446.2,15.07149317]
[1735897893121,1.30213825,3446.3,3446.2,3.58897463]
[1735897894534,1.30213825,3446.3,3446.2,8.12219198]
[1735897896331,1.30213825,3446.3,3446.2,8.12219228]
[1735897896735,1.01175825,3446.3,3446.2,8.12219228]
[1735897896931,0.29037,3446.4,3446.3,0.29038]
[1735897897221,0.29037,3446.4,3446.3,0.38116493]
[1735897898523,0.29037,3446.4,3446.3,4.91466119]
[1735897899157,0.29037,3446.4,3446.3,4.91466064]
[1735897901747,0.29037,3446.4,3446.3,4.91466111]
[1735897902036,0.29037,3446.4,3446.3,4.91466168]
[1735897902424,0.29037,3446.4,3446.3,4.91466129]
[1735897902826,0.29037,3446.4,3446.3,5.07820116]
[1735897904227,0.29037,3446.4,3446.3,11.86900852]
[1735897905737,0.29037,3446.4,3446.3,5.07820116]
[1735897905943,2.2810157,3446.7,3446.3,4.78782116]
[1735897906247,0.29036,3446.6,3446.5,0.29035]
[1735897906441,0.29036,3446.6,3446.5,0.38113503]
[1735897906942,0.29036,3446.6,3446.5,4.92407877]
[1735897908450,0.29036,3446.6,3446.5,4.98738613]
[1735897908644,0.29036,3446.6,3446.5,4.78781687]
[1735897909152,0.29036,3446.6,3446.5,4.78782173]
[1735897910529,0.29036,3446.6,3446.5,5.07818173]
[1735897911029,0.29036,3446.6,3446.5,4.78782173]
[1735897911524,2.57602178,3446.6,3446.5,5.07817444]
[1735897911724,2.28566178,3446.6,3446.5,5.07817444]
[1735897912229,2.28566178,3446.6,3446.5,10.07817444]
[1735897912919,2.28566178,3447.0,3446.9,0.29033]
[1735897913123,2.28566178,3447.0,3446.9,6.72842481]
[1735897913323,2.28566178,3447.0,3446.9,5.71666656]
[1735897914341,2.57598178,3447.0,3446.9,3.58890831]
[1735897914624,0.29032,3447.0,3446.9,32.71563113]
[1735897914830,0.29032,3447.1,3447.0,0.29031]
[1735897915028,0.29032,3447.1,3447.0,0.38108831]
[1735897915220,3.02573778,3447.6,3447.0,0.09077831]
[1735897915427,0.29028,3447.5,3447.4,3.49808]
[1735897915630,0.29028,3447.5,3447.4,3.58885831]
[1735897917134,0.29028,3447.5,3447.4,7.99561444]
[1735897917433,0.29028,3447.5,3447.4,7.99559101]
[1735897917632,0.29028,3447.5,3447.4,8.28588101]
[1735897918034,0.29028,3447.5,3447.4,8.28588168]
[1735897918329,0.29027,3447.7,3447.6,0.29027]
[1735897918529,0.29027,3447.7,3447.6,0.38102555]
[1735897919130,0.29027,3447.7,3447.6,0.09075555]
[1735897919534,0.29027,3447.7,3447.6,4.90910599]
[1735897919735,2.53549906,3448.2,3447.6,4.61882914]
[1735897919935,2.53549906,3448.2,3447.6,4.52808044]
[1735897920132,0.29026,3447.7,3447.6,4.81834044]
[1735897920326,3.02561778,3448.2,3447.6,4.61882902]
[1735897920527,0.29026,3447.7,3447.6,4.81834044]
[1735897920732,0.29026,3447.7,3447.6,4.90908866]
[1735897921132,41.09026,3447.7,3447.6,0.38100822]
[1735897922339,0.72554,3448.3,3447.7,0.29025]
[1735897922539,0.29026,3447.8,3447.7,0.29025]
[1735897922744,0.29026,3447.8,3447.7,3.2078]
[1735897922936,41.09026,3447.8,3447.7,3.49806]
[1735897923337,41.09026,3447.8,3447.7,3.2078]
[1735897924844,41.09026,3447.8,3447.7,3.49806]
[1735897925543,41.09026,3447.8,3447.7,3.2078]
[1735897925742,40.8,3447.8,3447.7,3.49806]
[1735897925946,0.29023,3448.1,3448.0,0.29024]
[1735897926142,2.28566178,3448.2,3448.1,0.29023]
[1735897926350,43.08566178,3448.2,3448.1,3.5887693]
[1735897926542,41.09022,3448.2,3448.1,3.58876762]
[1735897927439,41.09022,3448.2,3448.1,3.29853762]
[1735897927638,41.09022,3448.2,3448.1,3.2078]
[1735897930343,0.29029,3447.4,3447.3,7.73588044]
[1735897930545,2.59033778,3447.4,3447.3,7.73588044]
[1735897931051,41.09029,3447.4,3447.3,7.73588044]
[1735897931951,41.09029,3447.4,3447.3,3.2078]
[1735897932953,0.29029,3447.4,3447.3,3.2078]
[1735897934747,0.29029,3447.4,3447.3,3.29855724]
[1735897935441,0.29029,3447.4,3447.3,3.2078]
[1735897935648,0.29029,3447.4,3447.3,3.29855772]
[1735897937045,0.29029,3447.4,3447.3,3.2985582]
[1735897940756,3.02571778,3447.7,3447.3,3.29855871]
[1735897940947,0.29028,3447.5,3447.4,0.09075871]
[1735897941147,0.29028,3447.5,3447.4,3.29855871]
[1735897943653,0.29028,3447.5,3447.4,3.2078]
[1735897943851,0.29028,3447.5,3447.4,3.29856043]
[1735897944354,0.29028,3447.5,3447.4,3.29855825]
[1735897944859,0.29028,3447.5,3447.4,0.09075825]
[1735897946164,0.29028,3447.5,3447.4,0.29029]
[1735897946459,41.52566,3447.8,3447.5,0.29027]
[1735897946460,0.29027,3447.6,3447.5,0.29027]
[1735897946763,0.29027,3447.7,3447.6,0.29026]
[1735897947059,0.29027,3447.7,3447.6,0.09075213]
[1735897947964,0.29026,3447.8,3447.7,0.29026]
[1735897948164,0.29026,3447.8,3447.7,3.29855213]
[1735897948865,0.29026,3447.8,3447.7,3.58881213]
[1735897949858,0.29026,3447.8,3447.7,3.58881059]
[1735897950360,0.29026,3447.8,3447.7,3.29855059]
[1735897952866,0.29026,3447.8,3447.7,3.29855129]
[1735897953254,0.29026,3447.8,3447.7,3.58881129]
[1735897954062,0.29026,3447.8,3447.7,3.29855129]
[1735897955260,0.29026,3447.8,3447.7,3.29855484]
[1735897955964,0.29026,3447.8,3447.7,3.29855384]
[1735897959263,2.57592178,3447.8,3447.7,7.82663428]
[1735897960569,0.29026,3447.8,3447.7,7.82663428]
[1735897961565,0.29026,3447.8,3447.7,8.11689428]
[1735897961966,0.29026,3447.8,3447.7,7.9940288]
[1735897962163,0.29026,3447.8,3447.7,7.90327496]
[1735897962367,0.29026,3447.8,3447.7,7.99402343]
[1735897962671,0.29026,3447.8,3447.7,7.99402515]
[1735897963668,0.29026,3447.8,3447.7,3.29855019]
[1735897964273,1.3011576,3447.8,3447.7,3.29855019]
[1735897965174,1.3011576,3447.8,3447.7,7.83310052]
[1735897965472,1.3011576,3447.8,3447.7,7.83310122]
[1735897965672,1.3011576,3447.8,3447.7,8.12336122]
[1735897966772,1.3011576,3447.8,3447.7,8.28348936]
[1735897968283,1.3011576,3447.8,3447.7,15.07857138]
[1735897968777,1.0108976,3447.8,3447.7,15.07857138]
[1735897969173,1.3011476,3447.8,3447.7,15.07857138]
[1735897969978,1.0108976,3447.8,3447.7,15.07857138]
[1735897970480,1.3011476,3447.8,3447.7,15.07857138]
[1735897971072,1.3011476,3447.8,3447.7,14.78831138]
[1735897971376,1.3011476,3447.8,3447.7,14.78831401]
[1735897972080,1.3011476,3447.8,3447.7,14.78831462]